[Event "Late-Titled-Tuesday-Blitz-April-30-2024"]
[Site "Chess.com"]
[Date "2024.04.30"]
[Round "6"]
[White "stasOR4ik"]
[Black "Casablanca"]
[Result "1-0"]
[WhiteElo "2486"]
[BlackElo "2627"]
[TimeControl "180+1"]
[EndTime "15:07:05 PDT"]
[Termination "stasOR4ik won by checkmate"]

1. e4 {[%clk 0:03:00.9]} 1... b6 {[%clk 0:03:00.9]} 2. c4 {[%clk 0:03:00.6]}
2... Bb7 {[%clk 0:03:01.3]} 3. Nc3 {[%clk 0:03:01.5]} 3... e6 {[%clk 0:03:01.8]}
4. g3 {[%clk 0:03:01.9]} 4... f5 {[%clk 0:03:01.1]} 5. d3 {[%clk 0:03:02.1]}
5... Nf6 {[%clk 0:03:00.6]} 6. Bg2 {[%clk 0:03:02.4]} 6... Bb4 {[%clk
0:03:00.9]} 7. f3 {[%clk 0:02:55.4]} 7... O-O {[%clk 0:02:54.4]} 8. Ne2 {[%clk
0:02:54.8]} 8... fxe4 {[%clk 0:02:54.1]} 9. dxe4 {[%clk 0:02:53.1]} 9... d5
{[%clk 0:02:37]} 10. e5 {[%clk 0:02:40.5]} 10... Nfd7 {[%clk 0:02:17.2]} 11. f4
{[%clk 0:02:40.5]} 11... c6 {[%clk 0:02:05.5]} 12. O-O {[%clk 0:02:36]} 12...
Ba6 {[%clk 0:01:59.9]} 13. cxd5 {[%clk 0:02:32.6]} 13... Bc5+ {[%clk 0:01:57.4]}
14. Kh1 {[%clk 0:02:31.6]} 14... cxd5 {[%clk 0:01:57]} 15. Nxd5 {[%clk
0:02:30.8]} 15... Nc6 {[%clk 0:01:56.5]} 16. b4 {[%clk 0:02:09.5]} 16... Nxb4
{[%clk 0:01:53]} 17. Nxb4 {[%clk 0:02:06.1]} 17... Bxb4 {[%clk 0:01:53.9]} 18.
Nd4 {[%clk 0:01:58.3]} 18... Bxf1 {[%clk 0:01:46.9]} 19. Qxf1 {[%clk 0:01:55.5]}
19... Nc5 {[%clk 0:01:45.8]} 20. Nc6 {[%clk 0:01:53.6]} 20... Qd3 {[%clk
0:01:20]} 21. Nxb4 {[%clk 0:01:41.2]} 21... Qc3 {[%clk 0:01:19.7]} 22. Rb1
{[%clk 0:01:38.7]} 22... Rad8 {[%clk 0:01:12.2]} 23. Nc6 {[%clk 0:01:30.1]}
23... Rd7 {[%clk 0:01:12.2]} 24. Bb2 {[%clk 0:01:14.3]} 24... Qc2 {[%clk
0:01:12.6]} 25. Nd4 {[%clk 0:01:08.6]} 25... Qd2 {[%clk 0:01:12.7]} 26. Qc4
{[%clk 0:00:56]} 26... Kh8 {[%clk 0:01:03.5]} 27. Nxe6 {[%clk 0:00:41.7]} 27...
Nxe6 {[%clk 0:01:02]} 28. Qxe6 {[%clk 0:00:41.7]} 28... Qc2 {[%clk 0:01:00.3]}
29. Rg1 {[%clk 0:00:37.6]} 29... Rd2 {[%clk 0:00:47.4]} 30. Ba1 {[%clk
0:00:17.4]} 30... Rd1 {[%clk 0:00:44.1]} 31. Qe7 {[%clk 0:00:11.2]} 31... Rc8
{[%clk 0:00:40.4]} 32. e6 {[%clk 0:00:05.3]} 32... Rxg1+ {[%clk 0:00:37.2]} 33.
Kxg1 {[%clk 0:00:06.2]} 33... Qd1+ {[%clk 0:00:30.6]} 34. Bf1 {[%clk 0:00:06.2]}
34... Qxa1 {[%clk 0:00:29.3]} 35. Qd7 {[%clk 0:00:05.6]} 35... Rg8 {[%clk
0:00:27.3]} 36. e7 {[%clk 0:00:05.6]} 36... Qe1 {[%clk 0:00:23.4]} 37. Kg2
{[%clk 0:00:03.8]} 37... Qe4+ {[%clk 0:00:23.1]} 38. Kh3 {[%clk 0:00:03.4]}
38... Qg6 {[%clk 0:00:14.5]} 39. Bb5 {[%clk 0:00:00.6]} 39... Qh5+ {[%clk
0:00:15.1]} 40. Kg2 {[%clk 0:00:00.8]} 40... Qh3+ {[%clk 0:00:11.7]} 41. Kxh3
{[%clk 0:00:00.8]} 41... h5 {[%clk 0:00:11]} 42. e8=Q {[%clk 0:00:01.7]} 42...
h4 {[%clk 0:00:11.9]} 43. Qed8 {[%clk 0:00:01.2]} 43... Kh7 {[%clk 0:00:12.8]}
44. Q8e8 {[%clk 0:00:01.5]} 44... Kh6 {[%clk 0:00:13.7]} 45. Qxg8 {[%clk
0:00:01.9]} 45... g6 {[%clk 0:00:14.6]} 46. Qgg7+ {[%clk 0:00:02.4]} 46... Kh5
{[%clk 0:00:15.5]} 47. Qf5+ {[%clk 0:00:02.4]} 47... gxf5 {[%clk 0:00:15.8]} 48.
Qg5# {[%clk 0:00:03.3]} 1-0

[Event "Late-Titled-Tuesday-Blitz-April-30-2024"]
[Site "Chess.com"]
[Date "2024.04.30"]
[Round "6"]
[White "bobo_panda"]
[Black "ChessSwole"]
[Result "0-1"]
[WhiteElo "2420"]
[BlackElo "2665"]
[TimeControl "180+1"]
[EndTime "15:07:05 PDT"]
[Termination "ChessSwole won by checkmate"]

1. e4 {[%clk 0:03:00.9]} 1... c5 {[%clk 0:02:58.1]} 2. Nf3 {[%clk 0:03:01]} 2...
Nc6 {[%clk 0:02:58.5]} 3. d4 {[%clk 0:03:01.4]} 3... cxd4 {[%clk 0:02:59.4]} 4.
Nxd4 {[%clk 0:03:01.5]} 4... e6 {[%clk 0:02:59.9]} 5. Nc3 {[%clk 0:03:01.1]}
5... Qc7 {[%clk 0:03:00.1]} 6. Qd3 {[%clk 0:03:01.2]} 6... Nf6 {[%clk
0:02:51.8]} 7. Ndb5 {[%clk 0:03:00.4]} 7... Qb8 {[%clk 0:02:50.9]} 8. Qg3 {[%clk
0:03:00.5]} 8... d6 {[%clk 0:02:47.2]} 9. Be3 {[%clk 0:03:00]} 9... a6 {[%clk
0:02:45.3]} 10. Nd4 {[%clk 0:03:00.2]} 10... Bd7 {[%clk 0:02:34.2]} 11. Be2
{[%clk 0:03:00.1]} 11... b5 {[%clk 0:02:29.9]} 12. a3 {[%clk 0:02:59.9]} 12...
Qb7 {[%clk 0:02:28.1]} 13. O-O {[%clk 0:02:51.7]} 13... Rc8 {[%clk 0:02:25.7]}
14. Nb3 {[%clk 0:02:40.3]} 14... Ne5 {[%clk 0:02:21.5]} 15. f3 {[%clk
0:02:20.1]} 15... h5 {[%clk 0:01:52.6]} 16. Bd4 {[%clk 0:02:02.7]} 16... h4
{[%clk 0:01:49.6]} 17. Qf2 {[%clk 0:02:01.8]} 17... Be7 {[%clk 0:01:40.9]} 18.
h3 {[%clk 0:01:59.2]} 18... Nc4 {[%clk 0:01:37.9]} 19. Bxc4 {[%clk 0:01:55.1]}
19... bxc4 {[%clk 0:01:37.8]} 20. Nd2 {[%clk 0:01:55.2]} 20... e5 {[%clk
0:01:24.5]} 21. Be3 {[%clk 0:01:39.1]} 21... Qxb2 {[%clk 0:01:22.7]} 22. Ne2
{[%clk 0:01:38.8]} 22... c3 {[%clk 0:01:12.3]} 23. Rab1 {[%clk 0:01:00]} 23...
Qxc2 {[%clk 0:01:11.9]} 24. Rfc1 {[%clk 0:00:58.3]} 24... Qd3 {[%clk 0:01:02.3]}
25. Nb3 {[%clk 0:00:56.7]} 25... c2 {[%clk 0:00:57.9]} 26. Rb2 {[%clk
0:00:56.2]} 26... Be6 {[%clk 0:00:45.8]} 27. Na1 {[%clk 0:00:52.2]} 27... d5
{[%clk 0:00:35.8]} 28. Rb3 {[%clk 0:00:38.8]} 28... Qd1+ {[%clk 0:00:31.6]} 29.
Kh2 {[%clk 0:00:38.4]} 29... d4 {[%clk 0:00:25.2]} 30. Bg5 {[%clk 0:00:32.1]}
30... Bxb3 {[%clk 0:00:22.3]} 31. Nxb3 {[%clk 0:00:30.5]} 31... Qd3 {[%clk
0:00:20.4]} 32. Nd2 {[%clk 0:00:26.3]} 32... Ng4+ {[%clk 0:00:19.9]} 33. fxg4
{[%clk 0:00:20.9]} 33... Bxg5 {[%clk 0:00:20.8]} 34. Qf5 {[%clk 0:00:20.9]}
34... O-O {[%clk 0:00:16]} 35. Qxg5 {[%clk 0:00:19.6]} 35... Qxe2 {[%clk
0:00:14.5]} 36. Nf3 {[%clk 0:00:19.4]} 36... Qe3 {[%clk 0:00:13.6]} 37. Qxe3
{[%clk 0:00:16.2]} 37... dxe3 {[%clk 0:00:14.5]} 38. Nxh4 {[%clk 0:00:16.2]}
38... Rfd8 {[%clk 0:00:14.5]} 39. Nf3 {[%clk 0:00:14.9]} 39... Rd1 {[%clk
0:00:14.1]} 40. Rxc2 {[%clk 0:00:15.2]} 40... Rxc2 {[%clk 0:00:14.9]} 41. Kg3
{[%clk 0:00:14.2]} 41... e2 {[%clk 0:00:15.1]} 42. Nxe5 {[%clk 0:00:14.1]} 42...
e1=Q+ {[%clk 0:00:15]} 43. Kf4 {[%clk 0:00:15]} 43... Qf2+ {[%clk 0:00:15.1]}
44. Nf3 {[%clk 0:00:15.9]} 44... Rc3 {[%clk 0:00:14.3]} 45. e5 {[%clk
0:00:16.7]} 45... Rxf3+ {[%clk 0:00:14.3]} 46. gxf3 {[%clk 0:00:16.6]} 46...
Rd4+ {[%clk 0:00:15.1]} 47. Kg5 {[%clk 0:00:16.9]} 47... Qe3+ {[%clk 0:00:15.4]}
48. f4 {[%clk 0:00:15.7]} 48... Qxf4+ {[%clk 0:00:15.6]} 49. Kh4 {[%clk
0:00:15.8]} 49... Qh6+ {[%clk 0:00:16.3]} 50. Kg3 {[%clk 0:00:16]} 50... Rd3+
{[%clk 0:00:17.2]} 51. Kg2 {[%clk 0:00:16.5]} 51... Qd2+ {[%clk 0:00:17.2]} 52.
Kf1 {[%clk 0:00:16.9]} 52... Re3 {[%clk 0:00:18]} 53. Kg1 {[%clk 0:00:16.6]}
53... Re1# {[%clk 0:00:18.9]} 0-1

[Event "Late-Titled-Tuesday-Blitz-April-30-2024"]
[Site "Chess.com"]
[Date "2024.04.30"]
[Round "6"]
[White "ahkashefi2800"]
[Black "Hudijegszid"]
[Result "0-1"]
[WhiteElo "2579"]
[BlackElo "2467"]
[TimeControl "180+1"]
[EndTime "15:07:07 PDT"]
[Termination "Hudijegszid won on time"]

1. e4 {[%clk 0:02:52.2]} 1... c6 {[%clk 0:02:57.9]} 2. Nf3 {[%clk 0:02:51.3]}
2... d5 {[%clk 0:02:56]} 3. Nc3 {[%clk 0:02:52.2]} 3... dxe4 {[%clk 0:02:54.4]}
4. Nxe4 {[%clk 0:02:52.5]} 4... Nf6 {[%clk 0:02:53.5]} 5. Nxf6+ {[%clk
0:02:49.7]} 5... exf6 {[%clk 0:02:52.4]} 6. d4 {[%clk 0:02:50.6]} 6... Bg4
{[%clk 0:02:50.2]} 7. Be2 {[%clk 0:02:50.6]} 7... Bd6 {[%clk 0:02:44.8]} 8. O-O
{[%clk 0:02:50.8]} 8... O-O {[%clk 0:02:45.1]} 9. c4 {[%clk 0:02:51.3]} 9... Nd7
{[%clk 0:02:45.1]} 10. Be3 {[%clk 0:02:51.8]} 10... Re8 {[%clk 0:02:44.8]} 11.
h3 {[%clk 0:02:51.6]} 11... Bh5 {[%clk 0:02:43.8]} 12. a3 {[%clk 0:02:51.1]}
12... Nf8 {[%clk 0:02:43]} 13. b4 {[%clk 0:02:51]} 13... Ne6 {[%clk 0:02:39.4]}
14. Qd2 {[%clk 0:02:49.4]} 14... Qc7 {[%clk 0:02:29.2]} 15. Rac1 {[%clk
0:02:47.9]} 15... Nf4 {[%clk 0:02:25]} 16. Rfd1 {[%clk 0:02:43.6]} 16... Nxe2+
{[%clk 0:02:22.2]} 17. Qxe2 {[%clk 0:02:43.7]} 17... f5 {[%clk 0:02:19]} 18. Qd3
{[%clk 0:02:15.4]} 18... Bxf3 {[%clk 0:02:15]} 19. gxf3 {[%clk 0:02:15.2]} 19...
f4 {[%clk 0:02:15.1]} 20. Bd2 {[%clk 0:02:14.8]} 20... Qd7 {[%clk 0:02:11.6]}
21. Kh2 {[%clk 0:02:14]} 21... Re6 {[%clk 0:02:10.1]} 22. Rg1 {[%clk 0:01:52.1]}
22... Rh6 {[%clk 0:02:04.5]} 23. Rg4 {[%clk 0:01:51.1]} 23... Re8 {[%clk
0:01:54.4]} 24. Rcg1 {[%clk 0:01:43.2]} 24... g6 {[%clk 0:01:49.5]} 25. Re1
{[%clk 0:01:42.1]} 25... Rxe1 {[%clk 0:01:22.4]} 26. Bxe1 {[%clk 0:01:41.2]}
26... Rh5 {[%clk 0:01:04.8]} 27. Bc3 {[%clk 0:01:35.8]} 27... b5 {[%clk
0:00:46.4]} 28. Bd2 {[%clk 0:00:37.6]} 28... Qe6 {[%clk 0:00:42]} 29. d5 {[%clk
0:00:27.9]} 29... bxc4 {[%clk 0:00:37.9]} 30. Qxc4 {[%clk 0:00:10.4]} 30... cxd5
{[%clk 0:00:29.3]} 31. Qd4 {[%clk 0:00:09.9]} 31... Qe2 {[%clk 0:00:22.2]} 32.
Bxf4 {[%clk 0:00:09.7]} 32... Qxf3 {[%clk 0:00:15.1]} 33. Bg3 {[%clk 0:00:06.8]}
33... Be5 {[%clk 0:00:11.3]} 34. Qxa7 {[%clk 0:00:01.3]} 34... Qxg4 {[%clk
0:00:08.3]} 35. Qa8+ {[%clk 0:00:01.6]} 35... Kg7 {[%clk 0:00:08.2]} 36. Bxe5+
{[%clk 0:00:02.3]} 36... f6 {[%clk 0:00:08.3]} 37. Qb7+ {[%clk 0:00:02.2]} 37...
Kh6 {[%clk 0:00:08.7]} 0-1

[Event "Late-Titled-Tuesday-Blitz-April-30-2024"]
[Site "Chess.com"]
[Date "2024.04.30"]
[Round "6"]
[White "yuki_chess123"]
[Black "stepanosinovsky"]
[Result "1-0"]
[WhiteElo "2114"]
[BlackElo "2351"]
[TimeControl "180+1"]
[EndTime "15:07:08 PDT"]
[Termination "yuki_chess123 won on time"]

1. Nf3 {[%clk 0:02:59.2]} 1... Nf6 {[%clk 0:02:21.9]} 2. g3 {[%clk 0:02:56.7]}
2... g6 {[%clk 0:02:21.8]} 3. Bg2 {[%clk 0:02:57.4]} 3... Bg7 {[%clk 0:02:22.7]}
4. c4 {[%clk 0:02:57.3]} 4... O-O {[%clk 0:02:23.6]} 5. Nc3 {[%clk 0:02:57.5]}
5... d6 {[%clk 0:02:24.5]} 6. d3 {[%clk 0:02:56.4]} 6... e5 {[%clk 0:02:24.7]}
7. Rb1 {[%clk 0:02:56.1]} 7... a5 {[%clk 0:02:24.1]} 8. a3 {[%clk 0:02:56]} 8...
Re8 {[%clk 0:02:23.8]} 9. b4 {[%clk 0:02:55.2]} 9... axb4 {[%clk 0:02:24.7]} 10.
axb4 {[%clk 0:02:55.1]} 10... e4 {[%clk 0:02:22.4]} 11. Nxe4 {[%clk 0:02:54.6]}
11... Nxe4 {[%clk 0:02:22.6]} 12. dxe4 {[%clk 0:02:55.3]} 12... Rxe4 {[%clk
0:02:21]} 13. c5 {[%clk 0:02:53.1]} 13... Ra2 {[%clk 0:01:39.4]} 14. O-O {[%clk
0:02:46.6]} 14... Rexe2 {[%clk 0:01:32.8]} 15. cxd6 {[%clk 0:02:38.1]} 15...
cxd6 {[%clk 0:01:15.4]} 16. Nd4 {[%clk 0:02:15.1]} 16... Bxd4 {[%clk 0:01:07.3]}
17. Qxd4 {[%clk 0:02:14.3]} 17... Nc6 {[%clk 0:00:57.9]} 18. Bxc6 {[%clk
0:02:03.1]} 18... bxc6 {[%clk 0:00:58.8]} 19. Bb2 {[%clk 0:02:03]} 19... f6
{[%clk 0:00:51.6]} 20. Qxf6 {[%clk 0:02:01.6]} 20... Qxf6 {[%clk 0:00:51.2]} 21.
Bxf6 {[%clk 0:02:02.3]} 21... Bh3 {[%clk 0:00:49.4]} 22. Bd4 {[%clk 0:01:46.9]}
22... Bxf1 {[%clk 0:00:47.5]} 23. Kxf1 {[%clk 0:01:46]} 23... Red2 {[%clk
0:00:42.8]} 24. Be3 {[%clk 0:01:43.9]} 24... Rd3 {[%clk 0:00:38]} 25. Rc1 {[%clk
0:01:40.8]} 25... Rb2 {[%clk 0:00:29.2]} 26. Rxc6 {[%clk 0:01:39]} 26... Rxb4
{[%clk 0:00:29.5]} 27. Rc7 {[%clk 0:01:39]} 27... Rb8 {[%clk 0:00:19.4]} 28. Bh6
{[%clk 0:01:37.4]} 28... Rd5 {[%clk 0:00:15.9]} 29. Rg7+ {[%clk 0:01:36]} 29...
Kh8 {[%clk 0:00:15.9]} 30. Rd7 {[%clk 0:01:36.5]} 30... Rh5 {[%clk 0:00:12.3]}
31. Bg7+ {[%clk 0:01:35.8]} 31... Kg8 {[%clk 0:00:12.2]} 32. Bd4 {[%clk
0:01:28.6]} 32... Rxh2 {[%clk 0:00:11.7]} 33. Kg1 {[%clk 0:01:17.6]} 33... Rh5
{[%clk 0:00:10.7]} 34. Rxd6 {[%clk 0:01:15.4]} 34... Kf7 {[%clk 0:00:10.8]} 35.
Kg2 {[%clk 0:01:11.5]} 35... Ke7 {[%clk 0:00:10.6]} 36. Ra6 {[%clk 0:01:11.5]}
36... Rb7 {[%clk 0:00:10.6]} 37. Be3 {[%clk 0:01:10.5]} 37... Rd5 {[%clk
0:00:10.7]} 38. Bf4 {[%clk 0:01:09.3]} 38... Kf7 {[%clk 0:00:10.6]} 39. Be3
{[%clk 0:01:08]} 39... h5 {[%clk 0:00:10.5]} 40. Kf3 {[%clk 0:00:58]} 40... Re7
{[%clk 0:00:10.6]} 41. Bf4 {[%clk 0:00:53.5]} 41... Re6 {[%clk 0:00:10.6]} 42.
Ra7+ {[%clk 0:00:52.8]} 42... Kf6 {[%clk 0:00:10.9]} 43. Bh6 {[%clk 0:00:51.9]}
43... Rd3+ {[%clk 0:00:10.4]} 44. Kg2 {[%clk 0:00:51.4]} 44... Rc6 {[%clk
0:00:09.3]} 45. Bg7+ {[%clk 0:00:51.2]} 45... Kf5 {[%clk 0:00:09.4]} 46. Rf7+
{[%clk 0:00:49.3]} 46... Kg5 {[%clk 0:00:09.4]} 47. Bf8 {[%clk 0:00:46.2]} 47...
Rd5 {[%clk 0:00:08.2]} 48. Be7+ {[%clk 0:00:45.9]} 48... Kh6 {[%clk 0:00:07.4]}
49. Bf8+ {[%clk 0:00:44.3]} 49... Kg5 {[%clk 0:00:07.3]} 50. Kh3 {[%clk
0:00:38.5]} 50... Rf5 {[%clk 0:00:04.7]} 51. f4+ {[%clk 0:00:35]} 1-0

[Event "Late-Titled-Tuesday-Blitz-April-30-2024"]
[Site "Chess.com"]
[Date "2024.04.30"]
[Round "6"]
[White "Boninknights"]
[Black "anasta10"]
[Result "0-1"]
[WhiteElo "2366"]
[BlackElo "2610"]
[TimeControl "180+1"]
[EndTime "15:07:09 PDT"]
[Termination "anasta10 won on time"]

1. d4 {[%clk 0:02:59.4]} 1... Nf6 {[%clk 0:02:59.2]} 2. Nf3 {[%clk 0:02:59.2]}
2... g6 {[%clk 0:02:58.7]} 3. c4 {[%clk 0:02:58.8]} 3... Bg7 {[%clk 0:02:59]} 4.
Nc3 {[%clk 0:02:58.5]} 4... c5 {[%clk 0:02:59.5]} 5. d5 {[%clk 0:02:57.7]} 5...
O-O {[%clk 0:02:59.2]} 6. Bg5 {[%clk 0:02:56.6]} 6... h6 {[%clk 0:02:57.6]} 7.
Bh4 {[%clk 0:02:55.7]} 7... e6 {[%clk 0:02:58]} 8. Nd2 {[%clk 0:02:53.2]} 8...
exd5 {[%clk 0:02:57.6]} 9. cxd5 {[%clk 0:02:52.6]} 9... g5 {[%clk 0:02:57.7]}
10. Bg3 {[%clk 0:02:51.4]} 10... Re8 {[%clk 0:02:58.4]} 11. e4 {[%clk
0:02:46.2]} 11... d6 {[%clk 0:02:58.1]} 12. Be2 {[%clk 0:02:45.1]} 12... a6
{[%clk 0:02:52.7]} 13. a4 {[%clk 0:02:43.6]} 13... Qe7 {[%clk 0:02:50.8]} 14.
O-O {[%clk 0:02:39.6]} 14... Nbd7 {[%clk 0:02:33.8]} 15. f4 {[%clk 0:02:35.2]}
15... gxf4 {[%clk 0:02:30.4]} 16. Bxf4 {[%clk 0:02:34.3]} 16... Ne5 {[%clk
0:02:31.1]} 17. Kh1 {[%clk 0:02:32.7]} 17... Rb8 {[%clk 0:02:27.4]} 18. Bxe5
{[%clk 0:02:27]} 18... Qxe5 {[%clk 0:02:27.2]} 19. Nc4 {[%clk 0:02:26.3]} 19...
Qe7 {[%clk 0:02:27.1]} 20. e5 {[%clk 0:02:10.4]} 20... dxe5 {[%clk 0:02:24.7]}
21. d6 {[%clk 0:02:09.7]} 21... Qe6 {[%clk 0:02:23.1]} 22. a5 {[%clk 0:02:06.7]}
22... Bd7 {[%clk 0:02:21.5]} 23. Nb6 {[%clk 0:02:00.8]} 23... Bc6 {[%clk
0:02:19.4]} 24. Bc4 {[%clk 0:01:57]} 24... Qh3 {[%clk 0:01:52.1]} 25. Ncd5
{[%clk 0:01:45.7]} 25... Nxd5 {[%clk 0:01:15.9]} 26. gxh3 {[%clk 0:01:26.4]}
26... Ne3+ {[%clk 0:01:15.4]} 27. Kg1 {[%clk 0:01:24.9]} 27... Nxd1 {[%clk
0:01:15.7]} 28. Bxf7+ {[%clk 0:01:24.1]} 28... Kh8 {[%clk 0:01:14.8]} 29. Bxe8
{[%clk 0:01:23.1]} 29... Ne3 {[%clk 0:01:07.2]} 30. Bxc6 {[%clk 0:01:17.9]}
30... Nxf1 {[%clk 0:01:07.2]} 31. Rxf1 {[%clk 0:01:12.6]} 31... bxc6 {[%clk
0:01:07.3]} 32. Rf7 {[%clk 0:01:08.3]} 32... Kg8 {[%clk 0:00:58]} 33. Rc7 {[%clk
0:01:05]} 33... Rd8 {[%clk 0:00:52.6]} 34. d7 {[%clk 0:00:59.7]} 34... Kf7
{[%clk 0:00:43]} 35. Rxc6 {[%clk 0:00:58.3]} 35... e4 {[%clk 0:00:41.2]} 36. Kf2
{[%clk 0:00:56.2]} 36... Bd4+ {[%clk 0:00:36.5]} 37. Ke2 {[%clk 0:00:55.7]}
37... Ke7 {[%clk 0:00:37.2]} 38. Rxh6 {[%clk 0:00:49.9]} 38... Rg8 {[%clk
0:00:37.7]} 39. Rh7+ {[%clk 0:00:39]} 39... Kd8 {[%clk 0:00:37.7]} 40. Rh4
{[%clk 0:00:29.7]} 40... Rg2+ {[%clk 0:00:33.6]} 41. Kf1 {[%clk 0:00:28.9]}
41... Rf2+ {[%clk 0:00:24.4]} 42. Ke1 {[%clk 0:00:27.5]} 42... e3 {[%clk
0:00:25]} 43. Re4 {[%clk 0:00:14.4]} 43... Rf8 {[%clk 0:00:23.3]} 44. Ke2 {[%clk
0:00:09.6]} 44... Rg8 {[%clk 0:00:21.7]} 45. Re8+ {[%clk 0:00:05.1]} 45... Rxe8
{[%clk 0:00:21.5]} 46. dxe8=Q+ {[%clk 0:00:03.6]} 46... Kxe8 {[%clk 0:00:22.2]}
47. Nc4 {[%clk 0:00:00.2]} 47... Kd7 {[%clk 0:00:22.4]} 0-1

[Event "Late-Titled-Tuesday-Blitz-April-30-2024"]
[Site "Chess.com"]
[Date "2024.04.30"]
[Round "6"]
[White "Anton_Demchenko"]
[Black "Meri-Arabidze"]
[Result "0-1"]
[WhiteElo "2902"]
[BlackElo "2702"]
[TimeControl "180+1"]
[EndTime "15:07:10 PDT"]
[Termination "Meri-Arabidze won on time"]

1. e4 {[%clk 0:03:00.9]} 1... c5 {[%clk 0:03:00.1]} 2. Nf3 {[%clk 0:03:01]} 2...
e6 {[%clk 0:03:00.2]} 3. g3 {[%clk 0:03:00.8]} 3... Nc6 {[%clk 0:02:59]} 4. Bg2
{[%clk 0:03:00.6]} 4... Nf6 {[%clk 0:02:59.7]} 5. Qe2 {[%clk 0:03:01.3]} 5... e5
{[%clk 0:02:59.9]} 6. d3 {[%clk 0:03:01.2]} 6... d6 {[%clk 0:03:00.1]} 7. O-O
{[%clk 0:03:01]} 7... Be7 {[%clk 0:03:00.4]} 8. Na3 {[%clk 0:02:59.7]} 8... O-O
{[%clk 0:03:00.2]} 9. Nc4 {[%clk 0:03:00.4]} 9... Re8 {[%clk 0:03:00]} 10. a4
{[%clk 0:02:58.9]} 10... Bf8 {[%clk 0:02:59.4]} 11. Bg5 {[%clk 0:02:59.1]} 11...
h6 {[%clk 0:02:59.1]} 12. Bxf6 {[%clk 0:02:59.5]} 12... Qxf6 {[%clk 0:02:59.8]}
13. Ne3 {[%clk 0:02:57.3]} 13... Be6 {[%clk 0:02:59.5]} 14. c3 {[%clk
0:02:56.1]} 14... Qd8 {[%clk 0:02:58.1]} 15. Nd2 {[%clk 0:02:56.2]} 15... a6
{[%clk 0:02:39.1]} 16. f4 {[%clk 0:02:56.5]} 16... f6 {[%clk 0:02:39.6]} 17. f5
{[%clk 0:02:42.5]} 17... Bf7 {[%clk 0:02:39.3]} 18. Bf3 {[%clk 0:02:43.3]} 18...
b5 {[%clk 0:02:36.5]} 19. Bh5 {[%clk 0:02:40.5]} 19... Bxh5 {[%clk 0:02:35.2]}
20. Qxh5 {[%clk 0:02:41.4]} 20... Ne7 {[%clk 0:02:30.4]} 21. Qf3 {[%clk
0:02:29.7]} 21... Qd7 {[%clk 0:02:30.4]} 22. Ra2 {[%clk 0:02:25.8]} 22... Rad8
{[%clk 0:02:23.9]} 23. axb5 {[%clk 0:02:23.4]} 23... axb5 {[%clk 0:02:22.1]} 24.
c4 {[%clk 0:02:19.2]} 24... Nc6 {[%clk 0:02:18]} 25. Nd5 {[%clk 0:02:16.2]}
25... Nb4 {[%clk 0:02:01.3]} 26. Ra5 {[%clk 0:02:07.3]} 26... Rb8 {[%clk
0:01:48.9]} 27. b3 {[%clk 0:01:55.8]} 27... Qd8 {[%clk 0:01:31.8]} 28. Ra7
{[%clk 0:01:48.4]} 28... Ra8 {[%clk 0:01:12.6]} 29. Rxa8 {[%clk 0:01:25.2]}
29... Qxa8 {[%clk 0:01:13.5]} 30. Nc7 {[%clk 0:01:25.7]} 30... Qa2 {[%clk
0:01:12]} 31. Nxe8 {[%clk 0:01:26]} 31... Qxd2 {[%clk 0:01:12.2]} 32. cxb5
{[%clk 0:01:22.6]} 32... d5 {[%clk 0:01:04.3]} 33. exd5 {[%clk 0:01:04.2]} 33...
c4 {[%clk 0:01:03.4]} 34. dxc4 {[%clk 0:00:57]} 34... Bc5+ {[%clk 0:01:03]} 35.
Kh1 {[%clk 0:00:57.7]} 35... Nd3 {[%clk 0:01:00.7]} 36. d6 {[%clk 0:00:54.1]}
36... e4 {[%clk 0:00:54.9]} 37. Qg2 {[%clk 0:00:08.4]} 37... Nf2+ {[%clk
0:00:52.2]} 38. Rxf2 {[%clk 0:00:09.1]} 38... Bxf2 {[%clk 0:00:52.9]} 39. h4
{[%clk 0:00:09.9]} 39... e3 {[%clk 0:00:51.6]} 40. d7 {[%clk 0:00:01.9]} 40...
Qxd7 {[%clk 0:00:50]} 41. b6 {[%clk 0:00:00.6]} 41... Qxe8 {[%clk 0:00:46.5]}
42. b7 {[%clk 0:00:01.3]} 42... Qb8 {[%clk 0:00:39.2]} 43. Qd5+ {[%clk
0:00:01.3]} 43... Kh7 {[%clk 0:00:38.5]} 44. Kg2 {[%clk 0:00:02.1]} 44... Qxg3+
{[%clk 0:00:36.8]} 45. Kf1 {[%clk 0:00:02.8]} 45... Qg1+ {[%clk 0:00:33.4]} 46.
Ke2 {[%clk 0:00:03.2]} 46... Qe1+ {[%clk 0:00:34.3]} 47. Kf3 {[%clk 0:00:02.1]}
47... Bg3 {[%clk 0:00:29.5]} 48. Qe4 {[%clk 0:00:01.3]} 48... Qf2+ {[%clk
0:00:29]} 49. Kg4 {[%clk 0:00:01.6]} 49... e2 {[%clk 0:00:29.6]} 0-1